bitfinex-derivatives/quotes_SOLF0:USTF0_20250328
["timestamp","ask_amount","ask_price","bid_price","bid_amount"]
[1743203803043,17.663752,129.2,129.18,0.05613739]
[1743203804143,7.745,129.19,129.18,0.05613739]
[1743203805148,7.7447,129.2,129.18,0.05613739]
[1743203805345,0.05759619,129.21,129.18,9.97518939]
[1743203805552,0.05759619,129.21,129.2,9.919052]
[1743203805850,0.05759619,129.21,129.2,45.123452]
[1743203806148,42.90350455,129.22,129.2,37.379052]
[1743203806446,42.90350455,129.22,129.21,17.662852]
[1743203807053,42.90350455,129.22,129.21,9.919052]
[1743203807750,42.90350455,129.22,129.21,17.662852]
[1743203808155,0.05463158,129.23,129.21,17.662852]
[1743203808348,0.05463158,129.23,129.2,45.123052]
[1743203808547,0.05463158,129.23,129.21,0.05656125]
[1743203812456,0.05463158,129.23,129.21,17.71931325]
[1743203825462,0.05463158,129.23,129.22,7.7432]
[1743203831767,54.92275655,129.28,129.24,7.7414]
[1743203831969,54.92275655,129.28,129.25,27.44]
[1743203832167,45.00370455,129.28,129.25,27.44]
[1743203832367,45.00370455,129.28,129.25,35.181]
[1743203833169,45.05339401,129.28,129.25,35.23408233]
[1743203833566,2.14988946,129.28,129.25,35.23408233]
[1743203833970,2.14988946,129.28,129.25,37.41213433]
[1743203834171,0.04968946,129.28,129.26,9.919052]
[1743203834470,0.04968946,129.28,129.27,7.7402]
[1743203835271,0.04968946,129.28,129.26,17.659552]
[1743203837972,0.04968946,129.28,129.26,9.919052]
[1743203843086,0.04968946,129.28,129.26,17.659752]
[1743203845988,0.04968946,129.28,129.26,9.919052]
[1743203849290,0.04968946,129.28,129.26,17.659752]
[1743203850288,0.04968946,129.28,129.27,7.7402]
[1743203850492,0.04968946,129.28,129.27,17.659252]
[1743203850893,12.8491199,129.32,129.27,9.919052]
[1743203851086,10.7065199,129.32,129.29,9.919052]
[1743203851286,10.7065199,129.32,129.3,9.919052]
[1743203851592,10.7065199,129.32,129.31,27.42]
[1743203852990,7.79432957,129.33,129.31,27.42]
[1743203854395,0.05772957,129.33,129.31,27.42]
[1743203855695,7.79432957,129.33,129.31,27.42]
[1743203855897,0.05772957,129.33,129.31,27.42]
[1743203856098,0.05772957,129.33,129.31,37.339052]
[1743203856896,0.05772957,129.33,129.32,9.919052]
[1743203857800,0.05772957,129.33,129.32,17.656252]
[1743203858001,0.05772957,129.33,129.31,37.339052]
[1743203860193,7.79432957,129.33,129.31,37.339052]
[1743203860394,0.05772957,129.33,129.31,27.42]
[1743203861305,0.05772957,129.33,129.32,9.919052]
[1743203864797,0.05772957,129.33,129.32,17.656252]
[1743203866206,0.05772957,129.33,129.32,9.919052]
[1743203866806,0.05772957,129.33,129.32,17.656252]
[1743203867807,0.05772957,129.33,129.32,9.919052]
[1743203869405,0.05772957,129.33,129.32,17.656252]
[1743203869904,0.05772957,129.33,129.32,9.919052]
[1743203870810,0.05772957,129.33,129.32,17.656252]
[1743203871010,0.05772957,129.33,129.32,9.919052]
[1743203872812,0.05772957,129.33,129.32,17.656252]
[1743203873812,0.05772957,129.33,129.32,9.919052]
[1743203875011,0.05772957,129.33,129.32,17.656252]
[1743203876914,0.05772957,129.33,129.32,9.919052]
[1743203879619,0.05772957,129.33,129.32,37.319052]
[1743203880719,10.7065199,129.38,129.32,37.319052]
[1743203880915,10.7065199,129.38,129.35,9.919052]
[1743203881116,10.7065199,129.38,129.36,27.4]
[1743203881617,10.7065199,129.38,129.37,9.919052]
[1743203883216,0.05584748,129.39,129.37,9.919052]
[1743203890129,7.78884748,129.39,129.37,9.919052]
[1743203891025,7.7336,129.38,129.37,9.919052]
[1743203891224,0.05584748,129.39,129.36,37.37049231]
[1743203891724,7.7342,129.37,129.36,0.05144031]
[1743203896928,7.7339,129.38,129.36,0.05144031]
[1743203900333,7.7339,129.38,129.36,9.97049231]
[1743203906638,18.49566738,129.39,129.36,9.97049231]
[1743203907246,7.7338,129.38,129.36,9.97049231]
[1743203907444,7.7338,129.38,129.36,0.05144031]
[1743203911953,18.49566738,129.39,129.36,0.05144031]
[1743203913149,7.7337,129.38,129.36,0.05144031]
[1743203914255,18.49566738,129.39,129.36,0.05144031]
[1743203915760,50.69265203,129.39,129.36,0.05144031]
[1743203918460,25.57230401,129.38,129.36,0.05144031]
[1743203919161,33.30590401,129.38,129.36,0.05144031]
[1743203921066,7.7336,129.38,129.36,0.05144031]
[1743203921256,42.95935203,129.39,129.37,27.4]
[1743203921461,42.95935203,129.39,129.37,37.319052]
[1743203926061,50.69245203,129.39,129.37,27.4]
[1743203927670,25.58272715,129.38,129.37,27.4]
[1743203933767,36.28924705,129.38,129.37,27.4]
[1743203937077,97.06220916,129.38,129.37,27.4]
[1743203949185,97.06220916,129.38,129.37,37.319052]
[1743203949985,36.28924705,129.38,129.37,37.319052]
[1743203952988,25.58272715,129.38,129.37,37.319052]
[1743203953985,25.58272715,129.38,129.37,27.4]
[1743203955190,36.28924705,129.38,129.37,27.4]
[1743203956391,36.28924705,129.38,129.37,35.1342]
[1743203956892,36.28924705,129.38,129.37,27.4]
[1743203958196,36.28924705,129.38,129.37,37.319052]
[1743203958693,25.58272715,129.38,129.37,37.319052]
[1743203960193,25.58272715,129.38,129.37,45.053252]
[1743203961097,42.95935203,129.39,129.37,45.053252]
[1743203961298,42.95935203,129.39,129.38,9.919052]
[1743203961487,42.95935203,129.39,129.37,37.319052]
[1743203963699,42.95935203,129.39,129.37,45.053252]
[1743203963901,42.95935203,129.39,129.38,9.919052]
[1743203966798,0.05584748,129.39,129.38,9.919052]
[1743203970291,0.05584748,129.39,129.37,45.052952]
[1743203978608,0.05584748,129.39,129.37,37.319052]
[1743203979409,0.05584748,129.39,129.37,45.053052]
[1743203982703,0.05584748,129.39,129.38,7.7336]
[1743203984811,0.05584748,129.39,129.38,17.652652]
[1743203994117,0.05584748,129.39,129.37,27.4]
[1743203994715,0.05584748,129.39,129.37,37.319052]
[1743204000421,0.05584748,129.39,129.38,9.919052]
[1743204008021,0.05584748,129.39,129.37,45.053252]
[1743204011027,0.05584748,129.39,129.37,37.319052]
[1743204011430,0.05584748,129.39,129.37,45.052952]
[1743204011629,0.05584748,129.39,129.37,37.319052]
[1743204011828,0.05584748,129.39,129.38,9.919052]
[1743204012130,0.05584748,129.39,129.38,17.652652]
[1743204018530,10.7065199,129.4,129.39,7.733]
[1743204018731,10.7065199,129.4,129.39,17.652052]
[1743204019335,32.19698465,129.41,129.4,7.7324]
[1743204019533,42.90350455,129.42,129.4,37.279052]
[1743204019733,42.95847526,129.42,129.41,9.919052]
[1743204019930,42.95847526,129.42,129.41,17.650852]
[1743204023543,0.05497071,129.42,129.41,17.650852]
[1743204024039,0.05497071,129.42,129.41,7.7318]
[1743204024242,0.05497071,129.42,129.39,9.97498914]
[1743204024443,0.05497071,129.42,129.4,27.34]
[1743204025441,0.05497071,129.42,129.4,37.259052]
[1743204025742,10.76149061,129.42,129.4,37.259052]
[1743204026041,10.76149061,129.42,129.4,44.991452]
[1743204026843,10.76149061,129.42,129.4,37.259052]
[1743204028345,0.05497071,129.42,129.4,37.259052]
[1743204028646,0.05497071,129.42,129.4,27.34]
[1743204029937,7.78657071,129.42,129.4,27.34]
[1743204030941,18.49309061,129.42,129.4,27.34]
[1743204032438,7.7318,129.41,129.39,0.05593714]
[1743204032633,7.7318,129.41,129.39,27.39593714]
[1743204032838,20.68054261,129.42,129.39,27.39593714]
[1743204033139,28.41224261,129.42,129.39,27.39593714]
[1743204033646,20.68054261,129.42,129.39,27.39593714]
[1743204033841,25.58746343,129.41,129.39,27.39593714]
[1743204034246,33.31936343,129.41,129.39,27.39593714]
[1743204034745,7.7324,129.4,129.39,0.05593714]
[1743204034949,9.919052,129.4,129.34,255.0]
[1743204035144,9.919052,129.37,129.34,255.0]
[1743204035344,9.919052,129.35,129.34,255.0]
[1743204035542,9.919052,129.35,129.34,282.34]
[1743204035739,9.919052,129.35,129.34,27.34]
[1743204035939,17.654452,129.35,129.34,27.34]
[1743204036651,9.919052,129.35,129.3,27.34]
[1743204036848,9.919052,129.32,129.3,27.34]
[1743204037652,9.97203902,129.32,129.3,0.05563292]
[1743204038747,7.7378,129.31,129.3,0.05563292]
[1743204039351,17.70953902,129.32,129.3,0.05563292]
[1743204039850,7.7378,129.31,129.3,0.05563292]
[1743204042351,0.05298702,129.32,129.3,9.97468492]
[1743204042557,0.05298702,129.32,129.31,9.919052]
[1743204048955,0.05298702,129.32,129.3,17.71308492]
[1743204050365,0.05298702,129.32,129.31,7.7378]
[1743204052760,0.05298702,129.32,129.3,17.71278492]
[1743204053968,0.05298702,129.32,129.3,9.97468492]
[1743204054160,0.05298702,129.32,129.3,0.05563292]
[1743204055468,7.7378,129.31,129.3,0.05563292]
[1743204057868,7.7378,129.31,129.3,27.41563292]
[1743204058069,7.7378,129.31,129.3,0.05563292]
[1743204058270,7.7378,129.31,129.3,27.41563292]
[1743204058865,7.79048702,129.32,129.3,27.41563292]
[1743204059068,0.05298702,129.32,129.3,27.41563292]
[1743204060676,7.7378,129.31,129.3,27.41563292]
[1743204065679,7.7378,129.31,129.3,0.05563292]
[1743204065871,7.7402,129.27,129.25,9.919052]
[1743204066077,7.7402,129.27,129.24,17.660752]
[1743204066274,9.919052,129.28,129.25,27.36]
[1743204066481,7.7412,129.26,129.25,27.36]
[1743204066875,9.919052,129.28,129.23,265.099052]
[1743204067180,7.7408,129.26,129.24,27.40898147]
[1743204067881,7.79296154,129.27,129.24,35.15088147]
[1743204068381,0.05256154,129.27,129.24,37.32803347]
[1743204068578,0.05256154,129.27,129.25,9.919052]
[1743204068777,0.05256154,129.27,129.26,9.919052]
[1743204069279,0.05256154,129.27,129.26,17.659852]
[1743204070274,0.05256154,129.27,129.26,9.919052]
[1743204070979,0.05256154,129.27,129.26,17.659852]
[1743204072682,42.90350455,129.32,129.28,7.7394]
[1743204072876,42.90350455,129.32,129.29,37.279052]
[1743204073778,50.69653906,129.32,129.29,37.32776415]
[1743204073979,7.79303451,129.32,129.29,27.40871215]
[1743204074281,7.79303451,129.32,129.29,37.32776415]
[1743204074682,0.05563451,129.32,129.29,37.32776415]
[1743204076886,0.05563451,129.32,129.29,45.06656415]
[1743204079891,0.05563451,129.32,129.29,35.14751215]
[1743204080086,0.05563451,129.32,129.3,7.7383]
[1743204080483,0.05563451,129.32,129.29,27.40871215]
[1743204081088,0.05563451,129.32,129.29,35.14731215]
[1743204085896,7.79283451,129.32,129.29,35.14731215]
[1743204089794,9.919052,129.3,129.25,255.22]
[1743204089994,9.919052,129.28,129.25,255.22]
[1743204090188,7.7402,129.27,129.26,27.36]
[1743204092001,7.7408,129.26,129.25,0.05215614]
[1743204093298,17.659852,129.26,129.25,0.05215614]
[1743204093501,17.659852,129.26,129.21,37.279052]
[1743204093502,7.7428,129.23,129.21,37.279052]
[1743204093699,7.7428,129.23,129.21,9.919052]
[1743204093900,7.7428,129.23,129.21,27.36]
[1743204094806,0.04945081,129.23,129.21,37.33067597]
[1743204095004,0.04945081,129.23,129.22,9.919052]
[1743204095598,0.04945081,129.23,129.22,17.662252]
[1743204096805,0.04945081,129.23,129.22,9.919052]
[1743204097203,0.04945081,129.23,129.21,37.33067597]
[1743204100007,7.79225081,129.23,129.21,37.33067597]
[1743204100208,7.79225081,129.23,129.22,27.36]
[1743204102421,0.04945081,129.23,129.22,27.36]
[1743204102707,0.04945081,129.23,129.21,0.05162397]
[1743204102910,7.7432,129.22,129.21,27.41162397]
[1743204105613,7.7447,129.2,129.17,27.36]
[1743204105916,17.663752,129.2,129.17,27.36]
[1743204106107,7.745,129.19,129.17,27.36]
[1743204106708,7.79573029,129.19,129.17,27.41599604]
[1743204107215,0.05073029,129.19,129.17,37.33504804]
[1743204108210,7.79583029,129.19,129.17,37.33504804]
[1743204108916,7.79583029,129.19,129.17,27.41599604]
[1743204109803,7.79583029,129.19,129.18,27.36]
[1743204111416,17.71488229,129.19,129.18,27.36]
[1743204111612,7.7456,129.18,129.17,0.05599604]
[1743204112807,0.05073029,129.19,129.17,9.97504804]
[1743204113021,0.05073029,129.19,129.18,9.919052]
[1743204113816,0.05073029,129.19,129.18,17.664652]
[1743204118626,0.05073029,129.19,129.18,9.919052]
[1743204118925,0.05073029,129.19,129.17,17.72094804]
[1743204121718,0.05073029,129.19,129.18,17.664652]
[1743204121923,9.919052,129.24,129.18,9.919052]
[1743204122127,42.90350455,129.26,129.21,9.919052]
[1743204122128,52.82255655,129.26,129.21,9.919052]
[1743204122324,7.7417,129.25,129.22,37.299052]
[1743204123120,18.50027453,129.25,129.22,45.09890895]
[1743204124429,10.75857453,129.25,129.22,27.43675695]
[1743204124620,20.67762653,129.25,129.22,27.43675695]
[1743204124821,28.41942653,129.25,129.22,27.43675695]
[1743204125627,7.742,129.24,129.22,27.43675695]
[1743204127925,7.7426,129.23,129.22,27.43675695]
[1743204128432,17.661652,129.23,129.22,27.43675695]
[1743204128826,7.7426,129.23,129.22,27.43675695]
[1743204129225,7.7426,129.23,129.22,0.05675695]
[1743204129726,7.7432,129.22,129.21,27.36]
[1743204129930,7.7432,129.22,129.19,7.7447]
[1743204130133,7.7432,129.22,129.2,7.7442]
[1743204131031,7.79419664,129.22,129.2,7.79596352]
[1743204131344,7.79419664,129.22,129.2,0.05176352]
[1743204132245,0.05099664,129.22,129.2,37.33081552]
[1743204133145,0.05099664,129.22,129.2,45.07491552]
[1743204133743,0.05099664,129.22,129.21,17.662852]
[1743204135046,0.05099664,129.22,129.21,9.919052]
[1743204135843,0.05099664,129.22,129.2,45.07491552]
[1743204140056,0.05099664,129.22,129.21,7.7438]
[1743204140649,0.05099664,129.22,129.2,45.07491552]
[1743204141043,0.05099664,129.22,129.2,37.33081552]
[1743204141753,0.05099664,129.22,129.21,7.7438]
[1743204143651,0.05099664,129.22,129.2,35.15586352]
[1743204146248,0.05099664,129.22,129.2,27.41176352]
[1743204146552,0.05099664,129.22,129.21,7.7438]
[1743204149355,0.05099664,129.22,129.2,35.15586352]
[1743204149552,9.919052,129.21,129.2,0.05176352]
[1743204150252,9.919052,129.21,129.17,27.36]
[1743204150451,9.919052,129.19,129.17,27.36]
[1743204151243,9.96959774,129.19,129.17,27.36]
[1743204151445,7.7456,129.18,129.17,27.36]
[1743204151659,17.664652,129.18,129.17,27.36]
[1743204151851,9.919052,129.18,129.15,282.74]
[1743204152053,17.665652,129.17,129.15,27.36]
[1743204152452,17.665652,129.17,129.14,7.7479]
[1743204152656,7.7468,129.16,129.15,27.36]
[1743204153856,0.05655558,129.17,129.15,27.36]
[1743204154059,0.05655558,129.17,129.16,9.919052]
[1743204154952,0.05655558,129.17,129.15,37.279052]
[1743204155157,0.05655558,129.17,129.15,27.36]
[1743204155558,0.05655558,129.17,129.16,9.919052]
[1743204159660,0.05655558,129.17,129.16,17.665852]
[1743204160461,0.05655558,129.17,129.15,37.279052]
[1743204161460,7.80285558,129.17,129.15,27.36]
[1743204162662,0.05655558,129.17,129.15,27.36]
[1743204165062,0.05655558,129.17,129.15,35.1074]
[1743204171573,0.05655558,129.17,129.16,7.7468]
[1743204173573,0.05655558,129.17,129.16,17.665852]
[1743204176675,0.05655558,129.17,129.15,27.36]
[1743204176676,0.05655558,129.17,129.15,45.026252]
[1743204176877,0.05655558,129.17,129.15,37.279052]
[1743204177074,0.05655558,129.17,129.15,27.36]
[1743204178080,0.05655558,129.17,129.15,35.1072]
[1743204178279,0.05655558,129.17,129.15,45.026252]
[1743204178681,0.05655558,129.17,129.16,17.665852]
[1743204181180,0.05655558,129.17,129.15,45.026152]
[1743204182278,0.05655558,129.17,129.16,7.7468]
[1743204186785,0.05655558,129.17,129.16,17.665852]
[1743204192784,0.05655558,129.17,129.16,7.7468]
[1743204193291,0.05655558,129.17,129.15,37.279052]
[1743204194094,0.05655558,129.17,129.15,27.36]
[1743204194487,7.80305558,129.17,129.15,27.36]
[1743204195488,7.747,129.16,129.13,17.667452]
[1743204195893,7.747,129.16,129.14,27.36]
[1743204196094,7.80305558,129.17,129.14,27.36]
[1743204197000,0.05655558,129.17,129.14,45.027052]
[1743204197895,42.86662044,129.17,129.14,45.027052]
[1743204198290,42.86662044,129.17,129.14,27.36]
[1743204199688,50.61312044,129.17,129.14,27.36]
[1743204200399,7.7468,129.16,129.14,27.36]
[1743204201396,18.50557179,129.17,129.14,27.36]
[1743204201890,18.50557179,129.17,129.13,17.667252]
[1743204202096,18.50557179,129.17,129.13,45.027252]
[1743204202795,10.75907179,129.17,129.14,17.667052]
[1743204205900,18.50527179,129.17,129.14,9.919052]
[1743204211807,7.80275558,129.17,129.14,9.919052]
[1743204212011,7.7469,129.16,129.14,9.919052]
[1743204212509,0.05655558,129.17,129.14,9.919052]
[1743204212708,7.80315558,129.17,129.14,9.919052]
[1743204217208,7.7468,129.16,129.14,9.919052]
[1743204218317,7.7468,129.16,129.13,45.027652]
[1743204219417,0.05655558,129.17,129.13,37.279052]
[1743204219820,10.75907179,129.17,129.13,37.279052]
[1743204220422,7.747,129.16,129.14,27.36]
[1743204221915,10.75907179,129.17,129.14,27.36]
[1743204222216,9.919052,129.16,129.09,265.399052]
[1743204222419,9.919052,129.12,129.09,255.48]
[1743204222625,9.919052,129.12,129.1,27.36]
[1743204222820,9.919052,129.12,129.07,9.919052]
[1743204223018,7.7504,129.1,129.08,27.36]
[1743204223820,17.71950566,129.12,129.08,27.36]
[1743204225420,17.71950566,129.12,129.08,37.279052]
[1743204226714,60.52957052,129.12,129.08,37.279052]
[1743204228315,60.52957052,129.12,129.08,45.030552]
[1743204228920,60.52957052,129.12,129.08,35.1115]
[1743204229116,42.86081852,129.12,129.1,9.919052]
[1743204229318,42.86081852,129.12,129.11,27.36]
[1743204230218,0.05075366,129.12,129.11,27.36]
[1743204234627,7.79995366,129.12,129.11,27.36]
[1743204236523,17.71900566,129.12,129.11,27.36]
[1743204239132,7.79995366,129.12,129.11,27.36]
[1743204242337,7.7501,129.11,129.08,17.670352]
[1743204242537,7.7501,129.11,129.09,37.279052]
[1743204245941,7.7501,129.11,129.09,9.919052]
[1743204246239,7.7501,129.11,129.1,27.36]
[1743204248844,7.80025366,129.12,129.1,27.36]
[1743204249146,0.05075366,129.12,129.1,27.36]
[1743204250446,7.7498,129.11,129.1,27.36]
[1743204250748,0.05075366,129.12,129.1,27.36]
[1743204251244,7.80005366,129.12,129.1,27.36]
[1743204253349,7.7498,129.11,129.1,27.36]
[1743204257153,33.21812004,129.11,129.1,27.36]
[1743204259545,93.82230178,129.11,129.1,27.36]
[1743204259753,104.52481799,129.11,129.1,27.36]
[1743204264856,7.7507,129.1,129.08,9.919052]
[1743204265059,7.7507,129.1,129.09,27.36]
[1743204267558,43.92153625,129.1,129.09,27.36]
[1743204268158,36.17083625,129.1,129.09,27.36]
[1743204268959,43.92123625,129.1,129.09,27.36]
[1743204272653,7.7515,129.09,129.06,9.919052]
[1743204272853,7.7515,129.09,129.07,27.36]
[1743204273161,0.05942878,129.09,129.05,17.672052]
[1743204273361,0.05942878,129.09,129.06,27.36]
[1743204273864,0.05942878,129.09,129.07,27.36]
[1743204274955,7.7516,129.08,129.07,27.36]
[1743204275356,7.81062878,129.09,129.06,17.671852]
[1743204275562,7.81062878,129.09,129.06,9.919052]
[1743204275762,7.81062878,129.09,129.07,27.36]
[1743204276262,7.7516,129.08,129.07,27.36]
[1743204277063,7.81072878,129.09,129.07,27.36]
[1743204277261,25.46832004,129.08,129.07,27.36]
[1743204277463,25.46832004,129.08,129.07,37.279052]
[1743204278462,25.46832004,129.08,129.07,45.031252]
[1743204280467,0.05942878,129.09,129.08,7.7516]
[1743204280666,0.05942878,129.09,129.08,17.670652]
[1743204291176,0.05942878,129.09,129.08,45.030652]
[1743204292267,0.05942878,129.09,129.08,37.279052]
[1743204293369,0.05942878,129.09,129.08,27.36]
[1743204293572,0.05942878,129.09,129.04,255.58]
[1743204293866,0.05942878,129.09,129.06,9.919052]
[1743204294768,0.05942878,129.09,129.07,9.919052]
[1743204294967,0.05942878,129.09,129.05,27.34]
[1743204295167,0.05942878,129.09,129.07,9.919052]
[1743204295471,0.05942878,129.09,129.08,27.34]
[1743204302972,7.81042878,129.09,129.08,27.34]
[1743204303882,17.72948078,129.09,129.06,27.34]
[1743204304878,7.7516,129.08,129.06,27.34]
[1743204305283,7.7516,129.08,129.04,273.252752]
[1743204305578,7.7516,129.08,129.06,27.34]
[1743204308381,7.7516,129.08,129.06,27.36]
[1743204308582,17.72978078,129.09,129.06,27.36]
[1743204308783,60.53984564,129.09,129.06,27.36]
[1743204309180,60.53984564,129.09,129.04,273.252752]
[1743204309381,60.53984564,129.09,129.05,35.1133]
[1743204310982,60.53984564,129.09,129.05,7.7533]
[1743204311283,60.53984564,129.09,129.06,27.36]
[1743204312283,42.86949364,129.09,129.06,35.1126]
[1743204312485,42.86949364,129.09,129.06,37.279052]
[1743204312987,42.86949364,129.09,129.06,45.031452]
[1743204314788,0.05942878,129.09,129.06,45.031452]
[1743204315784,0.05942878,129.09,129.06,35.1124]
[1743204316087,7.81052878,129.09,129.06,45.031452]
[1743204316284,0.05942878,129.09,129.06,45.031452]
[1743204316991,0.05942878,129.09,129.07,9.919052]
[1743204317288,0.05942878,129.09,129.06,45.031452]
[1743204320890,0.05942878,129.09,129.08,7.7516]
[1743204322789,0.05942878,129.09,129.07,17.670952]
[1743204324090,0.05942878,129.09,129.08,7.7516]
[1743204325089,0.05942878,129.09,129.08,17.670652]
[1743204335911,42.81006486,129.13,129.11,7.7497]
[1743204336210,42.81006486,129.13,129.12,37.379052]
[1743204336412,85.62012974,129.14,129.12,37.379052]
[1743204336619,85.62012974,129.14,129.13,9.919052]
[1743204337114,85.62012974,129.14,129.13,17.667652]
[1743204337511,10.72601593,129.14,129.13,17.667652]
[1743204340314,0.0513889,129.15,129.13,9.919052]
[1743204340517,0.0513889,129.15,129.14,17.667052]
[1743204351223,11.930052,129.2,129.15,7.7469]
[1743204351423,11.930052,129.2,129.16,27.44]
[1743204352418,7.79634611,129.19,129.16,27.48899322]
[1743204353329,7.79634611,129.19,129.16,35.23569322]
[1743204353629,0.05124611,129.19,129.16,35.23569322]
[1743204354130,0.05124611,129.19,129.17,9.919052]
[1743204354528,0.05124611,129.19,129.17,17.664852]
[1743204355029,0.05124611,129.19,129.18,7.7456]
[1743204360638,0.05124611,129.19,129.18,17.664652]
[1743204363843,0.05124611,129.19,129.18,7.7456]
[1743204364635,0.05124611,129.19,129.18,17.664652]
[1743204364843,39.59801473,129.24,129.2,7.7442]
[1743204365140,29.67896273,129.24,129.21,27.42]
[1743204365340,27.57516273,129.24,129.21,45.082252]
[1743204365742,27.57516273,129.24,129.21,37.339052]
[1743204365942,27.62958989,129.24,129.21,37.39607865]
[1743204366135,27.62958989,129.24,129.22,7.743]
[1743204366643,0.05442716,129.24,129.21,17.71957865]
[1743204366943,0.05442716,129.24,129.22,37.379052]
[1743204367246,9.97347916,129.24,129.22,27.46]
[1743204367446,9.919052,129.23,129.22,27.46]
[1743204367744,9.919052,129.23,129.22,20.9434]
[1743204368245,17.661652,129.23,129.22,20.9434]
[1743204369647,17.661652,129.23,129.21,27.49702665]
[1743204369848,7.7426,129.23,129.21,27.49702665]
[1743204370350,7.7432,129.22,129.21,27.49702665]
[1743204374148,7.7429,129.23,129.21,27.49702665]
[1743204377954,7.7432,129.22,129.21,27.49702665]
[1743204381243,9.97347916,129.24,129.21,27.49702665]
[1743204381244,7.7429,129.23,129.21,27.49702665]
[1743204382959,7.7432,129.22,129.21,27.49702665]
[1743204385358,17.662252,129.22,129.21,0.05702665]
[1743204387055,9.919052,129.22,129.17,263.106]
[1743204387261,7.7449,129.2,129.18,27.34]
[1743204388347,7.79487973,129.2,129.18,27.39803204]
[1743204391354,7.745,129.19,129.18,27.39803204]
[1743204393167,7.745,129.19,129.18,27.37803204]
[1743204395958,17.664052,129.19,129.18,0.05803204]
[1743204396664,9.919052,129.19,129.15,27.34]
[1743204396864,9.919052,129.16,129.11,9.919052]
[1743204397065,7.7485,129.14,129.12,27.34]
[1743204397258,9.919052,129.16,129.12,27.34]
[1743204397455,9.919052,129.14,129.11,27.34]
[1743204397760,9.919052,129.13,129.1,27.34]
[1743204397962,9.919052,129.13,129.11,0.05145768]
[1743204398361,9.97555994,129.13,129.11,0.05145768]
[1743204398767,7.7496,129.12,129.11,0.05145768]
[1743204399770,17.668652,129.12,129.11,0.05145768]
[1743204401259,9.919052,129.12,129.11,0.05145768]
[1743204401462,17.72445994,129.13,129.11,0.05145768]
[1743204402261,9.97555994,129.13,129.11,0.05145768]
[1743204402465,0.05650794,129.13,129.11,0.05145768]
[1743204404165,0.05650794,129.13,129.11,7.80125768]
[1743204404669,0.05650794,129.13,129.11,0.05145768]
[1743204405269,0.05650794,129.13,129.12,27.4]
[1743204407270,7.80510794,129.13,129.12,27.4]
[1743204408271,0.05650794,129.13,129.12,27.4]
[1743204414789,0.05650794,129.13,129.11,17.72020968]
[1743204415083,0.05650794,129.13,129.12,27.36]
[1743204415782,0.05650794,129.13,129.12,35.1092]
[1743204419692,0.05650794,129.13,129.12,27.36]
[1743204424988,0.05650794,129.13,129.12,45.028252]
[1743204425294,42.86720569,129.19,129.12,37.279052]
[1743204425504,50.61250569,129.19,129.15,9.919052]
[1743204425795,50.61250569,129.19,129.16,37.259052]
[1743204426092,70.44930505,129.18,129.16,37.259052]
[1743204426282,70.44930505,129.18,129.17,9.919052]
[1743204426688,70.44930505,129.18,129.17,17.665252]
[1743204429197,0.05557652,129.19,129.17,17.665252]
[1743204432995,0.05557652,129.19,129.18,7.7456]
[1743204433898,0.05557652,129.19,129.16,27.38885058]
[1743204434196,9.919052,129.17,129.16,0.04885058]
[1743204435295,17.665252,129.17,129.16,0.04885058]
[1743204448396,42.38469757,129.17,129.16,0.04885058]
[1743204451303,32.46564557,129.17,129.16,0.04885058]
[1743204451503,24.71944557,129.17,129.16,0.04885058]
[1743204451803,34.63849757,129.17,129.16,0.04885058]
[1743204451994,42.38469757,129.17,129.16,0.04885058]
[1743204453206,17.665252,129.17,129.16,0.04885058]
[1743204458910,42.38142335,129.17,129.16,0.04885058]
[1743204460505,42.38142335,129.17,129.16,5.058e-05]
[1743204460707,46.48672335,129.17,129.16,5.058e-05]
[1743204461010,38.74052335,129.17,129.11,27.34]
[1743204461199,9.919052,129.14,129.11,27.34]
[1743204461709,7.7495,129.12,129.11,27.34]
[1743204462311,0.05241768,129.13,129.1,0.04903661]
[1743204462312,7.7498,129.11,129.1,0.04903661]
[1743204462611,7.7498,129.11,129.1,27.38903661]
[1743204463914,7.7494,129.12,129.1,27.38903661]